[Event "Titled Tuesday Blitz November 08 Late 2022"]
[White "Kozak, Adam"]
[Black "Sourath Biswas"]
[WhiteFideId "753246"]
[BlackFideId "35091484"]
[WhiteElo "2869"]
[BlackElo "2582"]
[Result "1-0"]
[Round "03"]
[TimeControl "180+1"]
[Date "2022.11.09"]
[WhiteClock "0:01:08"]
[BlackClock "0:00:12"]

1. e4 {[%clk 0:02:59]}  c5 {[%clk 0:02:58]} 2. Nf3 {[%clk 0:02:59]}  d6 {[%clk 0:02:58]} 3. Bb5+ {[%clk 0:02:59]}  Nd7 {[%clk 0:02:58]} 4. b3 {[%clk 0:02:59]}  Nf6 {[%clk 0:02:47]} 5. e5 {[%clk 0:02:54]}  dxe5 {[%clk 0:02:45]} 6. Nxe5 {[%clk 0:02:55]}  a6 {[%clk 0:02:44]} 7. Bxd7+ {[%clk 0:02:55]}  Nxd7 {[%clk 0:02:39]} 8. Qe2 {[%clk 0:02:46]}  Qc7 {[%clk 0:02:31]} 9. Bb2 {[%clk 0:02:39]}  Nf6 {[%clk 0:01:59]} 10. O-O {[%clk 0:02:28]}  g6 {[%clk 0:01:57]} 11. Nc3 {[%clk 0:02:09]}  Bg7 {[%clk 0:01:51]} 12. Rae1 {[%clk 0:02:05]}  O-O {[%clk 0:01:51]} 13. Ne4 {[%clk 0:02:05]}  Ng4 {[%clk 0:01:41]} 14. Nxg4 {[%clk 0:01:52]}  Bxb2 {[%clk 0:01:40]} 15. c3 {[%clk 0:01:43]}  Bxg4 {[%clk 0:00:30]} 16. Qxg4 {[%clk 0:01:40]}  f5 {[%clk 0:00:31]} 17. Qg3 {[%clk 0:01:40]}  e5 {[%clk 0:00:17]} 18. Ng5 {[%clk 0:01:38]}  Rad8 {[%clk 0:00:18]} 19. Ne6 {[%clk 0:01:37]}  Qd6 {[%clk 0:00:16]} 20. Nxf8 {[%clk 0:01:37]}  Rxf8 {[%clk 0:00:16]} 21. Qxe5 {[%clk 0:01:37]}  Qxd2 {[%clk 0:00:16]} 22. Re3 {[%clk 0:01:19]}  c4 {[%clk 0:00:14]} 23. Qe6+ {[%clk 0:01:18]}  Kg7 {[%clk 0:00:13]} 24. Qxc4 {[%clk 0:01:18]}  Rf7 {[%clk 0:00:13]} 25. a4 {[%clk 0:01:09]}  f4 {[%clk 0:00:12]} 26. Rh3 {[%clk 0:01:08]}  f3 {[%clk 0:00:11]} 27. Rxh7+ {[%clk 0:01:08]}  Kxh7 {[%clk 0:00:12]} 28. Qxf7+ {[%clk 0:01:08]} 1-0


[Site "https://www.chess.com"]

[Event "Titled Tuesday Blitz November 08 Late 2022"]
[White "Krishnan, Varun"]
[Black "Burke, Paul"]
[WhiteFideId "5054508"]
[BlackFideId "2605767"]
[WhiteElo "2529"]
[BlackElo "1812"]
[Result "1-0"]
[Round "03"]
[TimeControl "180+1"]
[Date "2022.11.09"]
[WhiteClock "0:01:13"]
[BlackClock "0:00:09"]

1. d4 {[%clk 0:03:00]}  Nf6 {[%clk 0:02:56]} 2. c4 {[%clk 0:03:00]}  c5 {[%clk 0:02:56]} 3. d5 {[%clk 0:03:00]}  Ne4 {[%clk 0:02:56]} 4. Qc2 {[%clk 0:02:54]}  Qa5+ {[%clk 0:02:54]} 5. Nd2 {[%clk 0:02:53]}  Nf6 {[%clk 0:02:53]} 6. e4 {[%clk 0:02:52]}  d6 {[%clk 0:02:53]} 7. h3 {[%clk 0:02:45]}  g6 {[%clk 0:02:53]} 8. Nf3 {[%clk 0:02:45]}  Bg7 {[%clk 0:02:53]} 9. Be2 {[%clk 0:02:45]}  O-O {[%clk 0:02:53]} 10. O-O {[%clk 0:02:45]}  Na6 {[%clk 0:02:52]} 11. a3 {[%clk 0:02:45]}  h6 {[%clk 0:02:52]} 12. Rb1 {[%clk 0:02:45]}  e5 {[%clk 0:02:51]} 13. Ne1 {[%clk 0:02:44]}  Bd7 {[%clk 0:02:40]} 14. Nd3 {[%clk 0:02:43]}  Qd8 {[%clk 0:02:27]} 15. b4 {[%clk 0:02:42]}  b6 {[%clk 0:02:27]} 16. f4 {[%clk 0:02:33]}  exf4 {[%clk 0:02:25]} 17. Nxf4 {[%clk 0:02:32]}  Re8 {[%clk 0:02:17]} 18. b5 {[%clk 0:02:30]}  Nc7 {[%clk 0:02:16]} 19. Bb2 {[%clk 0:02:30]}  a6 {[%clk 0:02:07]} 20. a4 {[%clk 0:02:29]}  axb5 {[%clk 0:02:07]} 21. axb5 {[%clk 0:02:29]}  Qe7 {[%clk 0:02:03]} 22. Bf3 {[%clk 0:02:19]}  Ra2 {[%clk 0:01:44]} 23. Qb3 {[%clk 0:02:06]}  Rxb2 {[%clk 0:01:30]} 24. Rxb2 {[%clk 0:02:04]}  Qe5 {[%clk 0:01:28]} 25. Nd3 {[%clk 0:01:59]}  Qd4+ {[%clk 0:01:26]} 26. Kh1 {[%clk 0:01:55]}  Nh7 {[%clk 0:01:03]} 27. Ra2 {[%clk 0:01:52]}  Ng5 {[%clk 0:01:02]} 28. Ra7 {[%clk 0:01:49]}  Qe3 {[%clk 0:00:31]} 29. Rxc7 {[%clk 0:01:37]}  Qxd2 {[%clk 0:00:30]} 30. Rxd7 {[%clk 0:01:32]}  Nxf3 {[%clk 0:00:16]} 31. Rxf3 {[%clk 0:01:29]}  Be5 {[%clk 0:00:14]} 32. Nxe5 {[%clk 0:01:22]}  Rxe5 {[%clk 0:00:13]} 33. Qe3 {[%clk 0:01:17]}  Qd1+ {[%clk 0:00:11]} 34. Kh2 {[%clk 0:01:17]}  f5 {[%clk 0:00:09]} 35. Qxh6 {[%clk 0:01:13]} 1-0


[Site "https://www.chess.com"]

[Event "Titled Tuesday Blitz November 08 Late 2022"]
[White "Kunin, Vitaly"]
[Black "Indjic, Aleksandar"]
[WhiteFideId "4128737"]
[BlackFideId "911925"]
[WhiteElo "2417"]
[BlackElo "2592"]
[Result "0-1"]
[Round "03"]
[TimeControl "180+1"]
[Date "2022.11.08"]
[WhiteClock "0:00:15"]
[BlackClock "0:01:05"]

1. d4 {[%clk 0:02:56]}  Nf6 {[%clk 0:02:59]} 2. Nf3 {[%clk 0:02:54]}  e6 {[%clk 0:02:59]} 3. c4 {[%clk 0:02:54]}  c5 {[%clk 0:02:58]} 4. e3 {[%clk 0:02:53]}  d5 {[%clk 0:02:57]} 5. Nc3 {[%clk 0:02:53]}  a6 {[%clk 0:02:54]} 6. a3 {[%clk 0:02:51]}  dxc4 {[%clk 0:02:52]} 7. Bxc4 {[%clk 0:02:50]}  b5 {[%clk 0:02:52]} 8. Be2 {[%clk 0:02:49]}  Bb7 {[%clk 0:02:52]} 9. dxc5 {[%clk 0:02:43]}  Qxd1+ {[%clk 0:02:50]} 10. Bxd1 {[%clk 0:02:42]}  Bxc5 {[%clk 0:02:49]} 11. b4 {[%clk 0:02:42]}  Bd6 {[%clk 0:02:45]} 12. Bb2 {[%clk 0:02:41]}  Nbd7 {[%clk 0:02:44]} 13. Rc1 {[%clk 0:02:34]}  Ke7 {[%clk 0:02:43]} 14. Bb3 {[%clk 0:02:29]}  g5 {[%clk 0:02:40]} 15. h3 {[%clk 0:02:27]}  Rhg8 {[%clk 0:02:39]} 16. Ke2 {[%clk 0:02:26]}  h5 {[%clk 0:02:38]} 17. Rhd1 {[%clk 0:02:08]}  g4 {[%clk 0:02:37]} 18. hxg4 {[%clk 0:02:07]}  hxg4 {[%clk 0:02:38]} 19. Ne1 {[%clk 0:02:07]}  Be5 {[%clk 0:02:29]} 20. Rd2 {[%clk 0:01:32]}  Rh8 {[%clk 0:02:24]} 21. Nd1 {[%clk 0:01:21]}  Bxb2 {[%clk 0:02:22]} 22. Nxb2 {[%clk 0:01:20]}  Rac8 {[%clk 0:02:12]} 23. Rxc8 {[%clk 0:01:18]}  Bxc8 {[%clk 0:02:11]} 24. f3 {[%clk 0:01:13]}  Rh2 {[%clk 0:02:05]} 25. Kf2 {[%clk 0:01:10]}  gxf3 {[%clk 0:02:04]} 26. Kg1 {[%clk 0:00:54]}  Ne4 {[%clk 0:01:34]} 27. Rc2 {[%clk 0:00:54]}  f2+ {[%clk 0:01:29]} 28. Rxf2 {[%clk 0:00:54]}  Nxf2 {[%clk 0:01:29]} 29. Kxh2 {[%clk 0:00:55]}  Ng4+ {[%clk 0:01:29]} 30. Kg3 {[%clk 0:00:55]}  Nxe3 {[%clk 0:01:30]} 31. Kf4 {[%clk 0:00:52]}  Nf5 {[%clk 0:01:27]} 32. g4 {[%clk 0:00:41]}  Nd4 {[%clk 0:01:27]} 33. Bd1 {[%clk 0:00:41]}  Bb7 {[%clk 0:01:27]} 34. g5 {[%clk 0:00:39]}  e5+ {[%clk 0:01:26]} 35. Kg4 {[%clk 0:00:39]}  Nf8 {[%clk 0:01:25]} 36. Nbd3 {[%clk 0:00:38]}  Ng6 {[%clk 0:01:25]} 37. Nc5 {[%clk 0:00:37]}  Bc8+ {[%clk 0:01:25]} 38. Kg3 {[%clk 0:00:33]}  Ne6 {[%clk 0:01:24]} 39. Bg4 {[%clk 0:00:29]}  Nxc5 {[%clk 0:01:10]} 40. Bxc8 {[%clk 0:00:29]}  Ne4+ {[%clk 0:01:11]} 41. Kg4 {[%clk 0:00:26]}  Nd6 {[%clk 0:01:09]} 42. Bxa6 {[%clk 0:00:23]}  Kd7 {[%clk 0:01:10]} 43. Nd3 {[%clk 0:00:21]}  Kc6 {[%clk 0:01:10]} 44. Nc5 {[%clk 0:00:20]}  Kb6 {[%clk 0:01:10]} 45. a4 {[%clk 0:00:16]}  bxa4 {[%clk 0:01:09]} 46. Bd3 {[%clk 0:00:15]}  a3 {[%clk 0:01:09]} 47. Na4+ {[%clk 0:00:15]}  Kc6 {[%clk 0:01:09]} 48. Nc3 {[%clk 0:00:15]}  e4 {[%clk 0:01:07]} 49. Nxe4 {[%clk 0:00:14]}  Ne5+ {[%clk 0:01:07]} 50. Kh5 {[%clk 0:00:14]}  Nxd3 {[%clk 0:01:07]} 51. b5+ {[%clk 0:00:14]}  Nxb5 {[%clk 0:01:07]} 52. g6 {[%clk 0:00:14]}  fxg6+ {[%clk 0:01:06]} 53. Kxg6 {[%clk 0:00:14]}  a2 {[%clk 0:01:07]} 54. Nc3 {[%clk 0:00:14]}  Nxc3 {[%clk 0:01:06]} 55. Kh7 {[%clk 0:00:15]}  a1=Q {[%clk 0:01:05]} 56. Kg8 {[%clk 0:00:15]}  Qa7 {[%clk 0:01:05]} 0-1


[Site "https://www.chess.com"]

[Event "Titled Tuesday Blitz November 08 Late 2022"]
[White "Luxama, Jacques Muller"]
[Black "Arbunic Castro, Giovanna"]
[WhiteFideId "11900113"]
[BlackFideId "3400549"]
[WhiteElo "1931"]
[BlackElo "1877"]
[Result "1-0"]
[Round "03"]
[TimeControl "180+1"]
[Date "2022.11.09"]
[WhiteClock "0:01:39"]
[BlackClock "0:00:03"]

1. e4 {[%clk 0:02:59]}  g6 {[%clk 0:02:57]} 2. d4 {[%clk 0:02:58]}  Bg7 {[%clk 0:02:56]} 3. h4 {[%clk 0:02:58]}  h5 {[%clk 0:02:54]} 4. Nf3 {[%clk 0:02:58]}  c5 {[%clk 0:02:53]} 5. d5 {[%clk 0:02:53]}  d6 {[%clk 0:02:41]} 6. Nc3 {[%clk 0:02:52]}  Nf6 {[%clk 0:02:40]} 7. Ng5 {[%clk 0:02:50]}  e6 {[%clk 0:02:20]} 8. dxe6 {[%clk 0:02:48]}  Bxe6 {[%clk 0:02:18]} 9. Nxe6 {[%clk 0:02:46]}  fxe6 {[%clk 0:02:16]} 10. Nb5 {[%clk 0:02:46]}  Nxe4 {[%clk 0:01:57]} 11. Bd3 {[%clk 0:02:43]}  Qa5+ {[%clk 0:01:47]} 12. Kf1 {[%clk 0:02:35]}  Nc6 {[%clk 0:01:22]} 13. Bxe4 {[%clk 0:02:29]}  Qxb5+ {[%clk 0:01:20]} 14. Bd3 {[%clk 0:02:30]}  c4 {[%clk 0:01:17]} 15. Bxg6+ {[%clk 0:02:29]}  Kd7 {[%clk 0:01:15]} 16. Bf4 {[%clk 0:02:19]}  d5 {[%clk 0:01:08]} 17. c3 {[%clk 0:02:09]}  b6 {[%clk 0:00:49]} 18. Qe2 {[%clk 0:02:03]}  Raf8 {[%clk 0:00:37]} 19. Bg3 {[%clk 0:02:01]}  Rf6 {[%clk 0:00:34]} 20. Bxh5 {[%clk 0:01:58]}  Rxh5 {[%clk 0:00:18]} 21. Qxh5 {[%clk 0:01:51]}  Qxb2 {[%clk 0:00:18]} 22. Re1 {[%clk 0:01:50]}  Qxc3 {[%clk 0:00:16]} 23. Qh7 {[%clk 0:01:45]}  Qd3+ {[%clk 0:00:13]} 24. Qxd3 {[%clk 0:01:42]}  cxd3 {[%clk 0:00:11]} 25. Rd1 {[%clk 0:01:42]}  Nb4 {[%clk 0:00:08]} 26. a3 {[%clk 0:01:42]}  Rg6 {[%clk 0:00:03]} 27. axb4 {[%clk 0:01:39]} 1-0


[Site "https://www.chess.com"]

[Event "Titled Tuesday Blitz November 08 Late 2022"]
[White "Manelyuk, Daniil"]
[Black "Kosakowski, Jakub"]
[WhiteFideId "44173920"]
[BlackFideId "1185080"]
[WhiteElo "2514"]
[BlackElo "2836"]
[Result "1-0"]
[Round "03"]
[TimeControl "180+1"]
[Date "2022.11.09"]
[WhiteClock "0:01:33"]
[BlackClock "0:00:12"]

1. e4 {[%clk 0:02:56]}  c5 {[%clk 0:02:53]} 2. Nf3 {[%clk 0:02:55]}  d6 {[%clk 0:02:53]} 3. d4 {[%clk 0:02:55]}  cxd4 {[%clk 0:02:54]} 4. Nxd4 {[%clk 0:02:55]}  Nf6 {[%clk 0:02:54]} 5. Nc3 {[%clk 0:02:56]}  a6 {[%clk 0:02:55]} 6. Be3 {[%clk 0:02:56]}  e5 {[%clk 0:02:53]} 7. Nb3 {[%clk 0:02:55]}  Be6 {[%clk 0:02:53]} 8. f3 {[%clk 0:02:55]}  Be7 {[%clk 0:02:51]} 9. Qd2 {[%clk 0:02:56]}  O-O {[%clk 0:02:51]} 10. O-O-O {[%clk 0:02:54]}  Nbd7 {[%clk 0:02:52]} 11. g4 {[%clk 0:02:53]}  b5 {[%clk 0:02:52]} 12. g5 {[%clk 0:02:52]}  b4 {[%clk 0:02:53]} 13. Ne2 {[%clk 0:02:48]}  Ne8 {[%clk 0:02:53]} 14. f4 {[%clk 0:02:45]}  a5 {[%clk 0:02:52]} 15. f5 {[%clk 0:02:45]}  a4 {[%clk 0:02:51]} 16. Nbd4 {[%clk 0:02:45]}  exd4 {[%clk 0:02:51]} 17. Nxd4 {[%clk 0:02:44]}  b3 {[%clk 0:02:51]} 18. Kb1 {[%clk 0:02:39]}  bxc2+ {[%clk 0:02:52]} 19. Nxc2 {[%clk 0:02:39]}  Bb3 {[%clk 0:02:52]} 20. axb3 {[%clk 0:02:40]}  axb3 {[%clk 0:02:53]} 21. Na3 {[%clk 0:02:40]}  Ne5 {[%clk 0:02:53]} 22. h4 {[%clk 0:02:38]}  Ra4 {[%clk 0:02:53]} 23. Qc3 {[%clk 0:02:27]}  Qa8 {[%clk 0:02:51]} 24. Rd4 {[%clk 0:02:27]}  Nc7 {[%clk 0:02:39]} 25. Rxa4 {[%clk 0:02:18]}  Qxa4 {[%clk 0:02:38]} 26. Qd4 {[%clk 0:02:18]}  Qa5 {[%clk 0:02:29]} 27. Be2 {[%clk 0:02:12]}  f6 {[%clk 0:01:06]} 28. Rc1 {[%clk 0:02:03]}  d5 {[%clk 0:01:04]} 29. Bd2 {[%clk 0:01:44]}  Qa8 {[%clk 0:00:25]} 30. Rxc7 {[%clk 0:01:42]}  Bxa3 {[%clk 0:00:26]} 31. bxa3 {[%clk 0:01:38]}  Qxa3 {[%clk 0:00:25]} 32. Ra7 {[%clk 0:01:36]}  Qd6 {[%clk 0:00:22]} 33. Bb4 {[%clk 0:01:33]}  Qc6 {[%clk 0:00:12]} 34. Qxd5+ {[%clk 0:01:33]}  Qxd5 {[%clk 0:00:12]} 35. exd5 {[%clk 0:01:33]} 1-0


[Site "https://www.chess.com"]

[Event "Titled Tuesday Blitz November 08 Late 2022"]
[White "Mendez Fortes, Eduardo Jesus"]
[Black "Pakleza, Zbigniew"]
[WhiteFideId "3502376"]
[BlackFideId "1119290"]
[WhiteElo "2556"]
[BlackElo "2775"]
[Result "0-1"]
[Round "03"]
[TimeControl "180+1"]
[Date "2022.11.09"]
[WhiteClock "0:00:35"]
[BlackClock "0:00:21"]

1. e4 {[%clk 0:03:00]}  d6 {[%clk 0:03:00]} 2. d4 {[%clk 0:03:00]}  Nf6 {[%clk 0:03:00]} 3. Nc3 {[%clk 0:03:00]}  c6 {[%clk 0:03:01]} 4. f4 {[%clk 0:03:00]}  Qb6 {[%clk 0:03:01]} 5. Nf3 {[%clk 0:02:57]}  Bg4 {[%clk 0:03:01]} 6. Be2 {[%clk 0:02:47]}  Bxf3 {[%clk 0:03:01]} 7. Bxf3 {[%clk 0:02:48]}  e5 {[%clk 0:03:01]} 8. dxe5 {[%clk 0:02:37]}  dxe5 {[%clk 0:03:02]} 9. fxe5 {[%clk 0:02:37]}  Nfd7 {[%clk 0:03:02]} 10. e6 {[%clk 0:02:23]}  fxe6 {[%clk 0:03:03]} 11. Qd3 {[%clk 0:02:13]}  Ne5 {[%clk 0:02:58]} 12. Qe3 {[%clk 0:02:05]}  Bc5 {[%clk 0:02:53]} 13. Bh5+ {[%clk 0:02:00]}  g6 {[%clk 0:02:45]} 14. Qf4 {[%clk 0:01:52]}  Nbd7 {[%clk 0:02:41]} 15. Be2 {[%clk 0:01:37]}  Rf8 {[%clk 0:02:34]} 16. Qg5 {[%clk 0:01:33]}  Bf2+ {[%clk 0:02:30]} 17. Kd1 {[%clk 0:01:32]}  Rd8 {[%clk 0:02:21]} 18. Bd2 {[%clk 0:01:25]}  Qd4 {[%clk 0:01:26]} 19. Kc1 {[%clk 0:01:17]}  Nc5 {[%clk 0:01:11]} 20. Rd1 {[%clk 0:01:08]}  Nxe4 {[%clk 0:01:07]} 21. Nxe4 {[%clk 0:00:50]}  Qxe4 {[%clk 0:01:08]} 22. Bf1 {[%clk 0:00:28]}  Rf5 {[%clk 0:00:26]} 23. Qh6 {[%clk 0:00:24]}  Rxd2 {[%clk 0:00:21]} 24. Kxd2 {[%clk 0:00:18]}  Ng4 {[%clk 0:00:20]} 25. Bd3 {[%clk 0:00:15]}  Qb4+ {[%clk 0:00:15]} 26. Kc1 {[%clk 0:00:13]}  Nxh6 {[%clk 0:00:14]} 27. Bxf5 {[%clk 0:00:13]}  Nxf5 {[%clk 0:00:14]} 28. a3 {[%clk 0:00:14]}  Qg4 {[%clk 0:00:12]} 29. Rd3 {[%clk 0:00:14]}  e5 {[%clk 0:00:08]} 30. Kb1 {[%clk 0:00:14]}  e4 {[%clk 0:00:09]} 31. Rb3 {[%clk 0:00:14]}  e3 {[%clk 0:00:09]} 32. Ka2 {[%clk 0:00:14]}  e2 {[%clk 0:00:09]} 33. Rb4 {[%clk 0:00:14]}  Qxb4 {[%clk 0:00:09]} 34. axb4 {[%clk 0:00:15]}  e1=Q {[%clk 0:00:10]} 35. Rxe1+ {[%clk 0:00:15]}  Bxe1 {[%clk 0:00:10]} 36. Kb3 {[%clk 0:00:15]}  Bf2 {[%clk 0:00:10]} 37. c3 {[%clk 0:00:15]}  Kd7 {[%clk 0:00:10]} 38. Kc4 {[%clk 0:00:16]}  b5+ {[%clk 0:00:10]} 39. Kd3 {[%clk 0:00:16]}  Ke6 {[%clk 0:00:10]} 40. Ke4 {[%clk 0:00:16]}  Bb6 {[%clk 0:00:10]} 41. b3 {[%clk 0:00:16]}  Bc7 {[%clk 0:00:09]} 42. h3 {[%clk 0:00:16]}  Be5 {[%clk 0:00:09]} 43. c4 {[%clk 0:00:15]}  Nd6+ {[%clk 0:00:08]} 44. Kd3 {[%clk 0:00:15]}  bxc4+ {[%clk 0:00:09]} 45. bxc4 {[%clk 0:00:16]}  h5 {[%clk 0:00:09]} 46. c5 {[%clk 0:00:17]}  Nb5 {[%clk 0:00:09]} 47. Ke4 {[%clk 0:00:17]}  g5 {[%clk 0:00:09]} 48. g4 {[%clk 0:00:18]}  h4 {[%clk 0:00:10]} 49. Kd3 {[%clk 0:00:17]}  Kd5 {[%clk 0:00:10]} 50. Kc2 {[%clk 0:00:17]}  Kc4 {[%clk 0:00:11]} 51. Kb1 {[%clk 0:00:17]}  Kxb4 {[%clk 0:00:10]} 52. Ka2 {[%clk 0:00:18]}  Kxc5 {[%clk 0:00:11]} 53. Kb3 {[%clk 0:00:18]}  Kd5 {[%clk 0:00:12]} 54. Ka4 {[%clk 0:00:19]}  Ke4 {[%clk 0:00:13]} 55. Ka5 {[%clk 0:00:19]}  Kf3 {[%clk 0:00:14]} 56. Ka4 {[%clk 0:00:20]}  Nd4 {[%clk 0:00:14]} 57. Ka5 {[%clk 0:00:21]}  Ne2 {[%clk 0:00:15]} 58. Ka6 {[%clk 0:00:22]}  Nf4 {[%clk 0:00:16]} 59. Kb7 {[%clk 0:00:23]}  Nxh3 {[%clk 0:00:17]} 60. Ka8 {[%clk 0:00:24]}  Nf2 {[%clk 0:00:18]} 61. Kb7 {[%clk 0:00:24]}  Kxg4 {[%clk 0:00:19]} 62. Ka8 {[%clk 0:00:25]}  Bf4 {[%clk 0:00:19]} 63. Kb7 {[%clk 0:00:26]}  Bc1 {[%clk 0:00:20]} 64. Ka8 {[%clk 0:00:27]}  c5 {[%clk 0:00:21]} 65. Kb7 {[%clk 0:00:28]}  c4 {[%clk 0:00:22]} 66. Ka8 {[%clk 0:00:29]}  c3 {[%clk 0:00:23]} 67. Kb7 {[%clk 0:00:30]}  h3 {[%clk 0:00:24]} 68. Ka8 {[%clk 0:00:31]}  h2 {[%clk 0:00:24]} 69. Kb7 {[%clk 0:00:32]}  h1=Q+ {[%clk 0:00:25]} 70. Ka6 {[%clk 0:00:32]}  Bd2 {[%clk 0:00:24]} 71. Ka5 {[%clk 0:00:33]}  c2+ {[%clk 0:00:24]} 72. Ka6 {[%clk 0:00:34]}  Qa1+ {[%clk 0:00:23]} 73. Kb7 {[%clk 0:00:34]}  c1=Q {[%clk 0:00:22]} 74. Ka8 {[%clk 0:00:35]}  Qc8# {[%clk 0:00:21]} 0-1


[Site "https://www.chess.com"]

[Event "Titled Tuesday Blitz November 08 Late 2022"]
[White "Mesa Cruz, Juan Carlos"]
[Black "Grave, Jacob Templen"]
[WhiteFideId "6423400"]
[BlackFideId "1542656"]
[WhiteElo "2059"]
[BlackElo "2126"]
[Result "0-1"]
[Round "03"]
[TimeControl "180+1"]
[Date "2022.11.09"]
[WhiteClock "0:00:03"]
[BlackClock "0:00:05"]

1. e4 {[%clk 0:02:42]}  d6 {[%clk 0:02:52]} 2. d4 {[%clk 0:02:39]}  g6 {[%clk 0:02:51]} 3. Nc3 {[%clk 0:02:30]}  Bg7 {[%clk 0:02:51]} 4. Bc4 {[%clk 0:02:29]}  Nf6 {[%clk 0:02:46]} 5. h3 {[%clk 0:02:19]}  O-O {[%clk 0:02:38]} 6. Be3 {[%clk 0:02:17]}  c6 {[%clk 0:02:17]} 7. Qd2 {[%clk 0:02:10]}  b5 {[%clk 0:02:03]} 8. Bd3 {[%clk 0:02:10]}  Nbd7 {[%clk 0:02:00]} 9. Nf3 {[%clk 0:01:46]}  e5 {[%clk 0:01:46]} 10. dxe5 {[%clk 0:01:29]}  Nxe5 {[%clk 0:01:37]} 11. Nxe5 {[%clk 0:01:27]}  dxe5 {[%clk 0:01:38]} 12. O-O {[%clk 0:01:25]}  Be6 {[%clk 0:01:33]} 13. Rad1 {[%clk 0:01:15]}  Qc7 {[%clk 0:01:19]} 14. Bc5 {[%clk 0:01:11]}  Rfd8 {[%clk 0:01:17]} 15. a4 {[%clk 0:00:54]}  a5 {[%clk 0:01:10]} 16. axb5 {[%clk 0:00:52]}  cxb5 {[%clk 0:01:11]} 17. Qe3 {[%clk 0:00:48]}  Nd7 {[%clk 0:01:04]} 18. Be7 {[%clk 0:00:47]}  Re8 {[%clk 0:00:45]} 19. Nxb5 {[%clk 0:00:46]}  Qc6 {[%clk 0:00:41]} 20. Ba3 {[%clk 0:00:38]}  Rab8 {[%clk 0:00:40]} 21. Nd6 {[%clk 0:00:31]}  Red8 {[%clk 0:00:38]} 22. Qe2 {[%clk 0:00:20]}  Bf8 {[%clk 0:00:37]} 23. Nc4 {[%clk 0:00:17]}  Bxa3 {[%clk 0:00:34]} 24. bxa3 {[%clk 0:00:16]}  Qc5 {[%clk 0:00:21]} 25. Qe3 {[%clk 0:00:09]}  Bxc4 {[%clk 0:00:20]} 26. Qxc5 {[%clk 0:00:08]}  Nxc5 {[%clk 0:00:21]} 27. Bxc4 {[%clk 0:00:09]}  Nxe4 {[%clk 0:00:21]} 28. Rde1 {[%clk 0:00:10]}  Nd2 {[%clk 0:00:20]} 29. Bb3 {[%clk 0:00:07]}  Nxf1 {[%clk 0:00:18]} 30. Kxf1 {[%clk 0:00:08]}  Rb5 {[%clk 0:00:17]} 31. Re4 {[%clk 0:00:08]}  Kg7 {[%clk 0:00:17]} 32. a4 {[%clk 0:00:08]}  Rc5 {[%clk 0:00:17]} 33. Ke2 {[%clk 0:00:07]}  f5 {[%clk 0:00:17]} 34. Re3 {[%clk 0:00:08]}  Kf6 {[%clk 0:00:16]} 35. f3 {[%clk 0:00:08]}  Rd4 {[%clk 0:00:15]} 36. g3 {[%clk 0:00:08]}  h5 {[%clk 0:00:14]} 37. c3 {[%clk 0:00:08]}  Rd6 {[%clk 0:00:13]} 38. Bc2 {[%clk 0:00:08]}  Rdc6 {[%clk 0:00:13]} 39. Kd2 {[%clk 0:00:07]}  g5 {[%clk 0:00:13]} 40. Bd3 {[%clk 0:00:07]}  Rxc3 {[%clk 0:00:11]} 41. Re1 {[%clk 0:00:07]}  Ra3 {[%clk 0:00:10]} 42. Bb5 {[%clk 0:00:06]}  Rd6+ {[%clk 0:00:10]} 43. Ke2 {[%clk 0:00:05]}  f4 {[%clk 0:00:10]} 44. gxf4 {[%clk 0:00:04]}  gxf4 {[%clk 0:00:11]} 45. Rc1 {[%clk 0:00:03]}  Re3+ {[%clk 0:00:10]} 46. Kf2 {[%clk 0:00:02]}  Rd2+ {[%clk 0:00:11]} 47. Kf1 {[%clk 0:00:03]}  Rxf3+ {[%clk 0:00:11]} 48. Ke1 {[%clk 0:00:04]}  Rh2 {[%clk 0:00:10]} 49. Rc6+ {[%clk 0:00:04]}  Kg5 {[%clk 0:00:09]} 50. Rc8 {[%clk 0:00:03]}  Kh4 {[%clk 0:00:09]} 51. Re8 {[%clk 0:00:02]}  Re3+ {[%clk 0:00:09]} 52. Kd1 {[%clk 0:00:02]}  Rhxh3 {[%clk 0:00:09]} 53. Bd7 {[%clk 0:00:01]}  Rd3+ {[%clk 0:00:07]} 54. Kc2 {[%clk 0:00:02]}  Rxd7 {[%clk 0:00:08]} 55. Rxe5 {[%clk 0:00:01]}  Rh2+ {[%clk 0:00:07]} 56. Kb1 {[%clk 0:00:02]}  f3 {[%clk 0:00:07]} 57. Re4+ {[%clk 0:00:02]}  Kg3 {[%clk 0:00:05]} 58. Re1 {[%clk 0:00:03]}  f2 {[%clk 0:00:04]} 59. Rc1 {[%clk 0:00:02]}  Rg2 {[%clk 0:00:03]} 60. Rc3+ {[%clk 0:00:02]}  Kh2 {[%clk 0:00:04]} 61. Rc1 {[%clk 0:00:03]}  Rg1 {[%clk 0:00:04]} 62. Kb2 {[%clk 0:00:03]}  Rxc1 {[%clk 0:00:04]} 63. Ka2 {[%clk 0:00:01]}  f1=Q {[%clk 0:00:05]} 64. Ka3 {[%clk 0:00:02]}  Qd3+ {[%clk 0:00:04]} 65. Kb2 {[%clk 0:00:03]}  Qc2+ {[%clk 0:00:04]} 66. Ka3 {[%clk 0:00:03]}  Rd3# {[%clk 0:00:05]} 0-1


[Site "https://www.chess.com"]

[Event "Titled Tuesday Blitz November 08 Late 2022"]
[White "Mihajlov, Sebastian"]
[Black "Hryzlova, Sofiia"]
[WhiteFideId "1512110"]
[BlackFideId "14174669"]
[WhiteElo "2464"]
[BlackElo "1992"]
[Result "0-1"]
[Round "03"]
[TimeControl "180+1"]
[Date "2022.11.09"]
[WhiteClock "0:01:10"]
[BlackClock "0:01:23"]

1. d4 {[%clk 0:02:57]}  Nf6 {[%clk 0:03:00]} 2. c4 {[%clk 0:02:54]}  g6 {[%clk 0:02:59]} 3. Nc3 {[%clk 0:02:51]}  Bg7 {[%clk 0:02:58]} 4. e4 {[%clk 0:02:51]}  d6 {[%clk 0:02:58]} 5. Be2 {[%clk 0:02:49]}  O-O {[%clk 0:02:58]} 6. Be3 {[%clk 0:02:49]}  Nc6 {[%clk 0:02:58]} 7. g4 {[%clk 0:02:48]}  e5 {[%clk 0:02:49]} 8. g5 {[%clk 0:02:48]}  exd4 {[%clk 0:02:44]} 9. gxf6 {[%clk 0:02:48]}  Bxf6 {[%clk 0:02:43]} 10. Bh6 {[%clk 0:02:45]}  dxc3 {[%clk 0:02:41]} 11. Bxf8 {[%clk 0:02:46]}  cxb2 {[%clk 0:02:41]} 12. Rb1 {[%clk 0:02:46]}  Qxf8 {[%clk 0:02:41]} 13. Nf3 {[%clk 0:02:44]}  Bc3+ {[%clk 0:02:35]} 14. Kf1 {[%clk 0:02:44]}  Bh3+ {[%clk 0:02:34]} 15. Kg1 {[%clk 0:02:45]}  Qc8 {[%clk 0:02:19]} 16. Ng5 {[%clk 0:02:39]}  Nd4 {[%clk 0:02:14]} 17. Nxh3 {[%clk 0:02:16]}  Qxh3 {[%clk 0:02:13]} 18. Bg4 {[%clk 0:02:16]}  Qh4 {[%clk 0:02:07]} 19. Kg2 {[%clk 0:02:11]}  h5 {[%clk 0:02:04]} 20. Bf3 {[%clk 0:02:07]}  Ne6 {[%clk 0:01:49]} 21. Kf1 {[%clk 0:01:50]}  Re8 {[%clk 0:01:43]} 22. h3 {[%clk 0:01:43]}  Ng5 {[%clk 0:01:39]} 23. Qd3 {[%clk 0:01:37]}  Nxe4 {[%clk 0:01:26]} 24. Bxe4 {[%clk 0:01:19]}  Qxe4 {[%clk 0:01:27]} 25. Qxe4 {[%clk 0:01:17]}  Rxe4 {[%clk 0:01:28]} 26. Kg2 {[%clk 0:01:13]}  Rxc4 {[%clk 0:01:27]} 27. Rhd1 {[%clk 0:01:14]}  Be5 {[%clk 0:01:26]} 28. Kf3 {[%clk 0:01:13]}  a5 {[%clk 0:01:25]} 29. Ke3 {[%clk 0:01:11]}  a4 {[%clk 0:01:24]} 30. a3 {[%clk 0:01:11]}  b5 {[%clk 0:01:24]} 31. Rd2 {[%clk 0:01:10]}  Bf4+ {[%clk 0:01:23]} 0-1


[Site "https://www.chess.com"]